fUSD/lending_fUSD_20251215
["ID","MTS","AMOUNT","RATE_DAILY","PERIOD"]
[398500566,1765756808687,-156.90022048,0.00015797,2]
[398500600,1765756891304,203.41976555,0.0001571,2]
[398500629,1765757013996,2031.13,0.00015333,2]
[398500640,1765757071279,150.0,0.00022098,120]
[398500644,1765757129593,150.0,0.00015288,2]
[398500645,1765757129650,150.0,0.00015429,2]
[398500646,1765757129746,150.0,0.00015571,2]
[398500647,1765757130366,150.0,0.00015712,2]
[398500648,1765757130644,150.0,0.00015288,2]
[398500649,1765757130691,150.0,0.00015409,2]
[398500650,1765757130734,150.0,0.0001553,2]
[398500651,1765757130771,150.0,0.00015652,2]
[398500652,1765757131499,150.0,0.00015288,2]
[398500653,1765757131577,150.0,0.00015627,2]
[398500654,1765757137569,150.0,0.00015288,2]
[398500655,1765757137611,150.0,0.00015394,2]
[398500656,1765757137652,150.0,0.000155,2]
[398500657,1765757137705,150.0,0.00015606,2]
[398500658,1765757137750,150.0,0.00015712,2]
[398500659,1765757138778,150.0,0.00015288,2]
[398500660,1765757138846,65.0738,0.00015476,2]
[398500661,1765757138875,84.9262,0.00015476,2]
[398500662,1765757138923,150.0,0.00015665,2]
[398500663,1765757146091,150.0,0.00015288,2]
[398500664,1765757146140,150.0,0.00015458,2]
[398500665,1765757146217,150.0,0.00015627,2]
[398500666,1765757156623,150.0,0.00015288,2]
[398500667,1765757157293,150.0,0.00015288,2]
[398500668,1765757157372,150.0,0.000155,2]
[398500669,1765757157434,150.0,0.00015712,2]
[398500670,1765757157908,150.0,0.00015288,2]
[398500671,1765757163824,250.0,0.00015129,2]
[398500676,1765757215489,168.0,0.00015586,2]
[398500677,1765757220702,168.0,0.00015663,2]
[398500682,1765757275950,388.85,7.552e-05,2]
[398500683,1765757275989,388.85,7.95e-05,2]
[398500684,1765757276026,388.85,8.347e-05,2]
[398500685,1765757276066,388.85,8.745e-05,2]
[398500686,1765757276231,388.85,9.142e-05,2]
[398500687,1765757276273,388.85,9.54e-05,2]
[398500688,1765757276317,388.85,9.937e-05,2]
[398500689,1765757276357,17399.45,0.00015105,2]
[398500690,1765757276400,388.85,0.00010335,2]
[398500691,1765757276440,388.85,0.00010733,2]
[398500692,1765757276635,388.85,0.0001113,2]
[398500693,1765757276835,388.85,0.00011528,2]
[398500694,1765757277040,388.85,0.00011925,2]
[398500695,1765757277232,388.85,0.00012323,2]
[398500696,1765757277445,388.85,0.0001272,2]
[398500697,1765757277645,388.85,0.00013118,2]
[398500698,1765757277842,388.85,0.00013515,2]
[398500699,1765757278094,388.85,0.00013913,2]
[398500700,1765757278538,388.85,0.0001431,2]
[398500701,1765757278837,388.85,0.00014708,2]
[398500702,1765757279075,388.85,0.00015105,2]
[398500712,1765757316473,693.08117626,0.00011727,2]
[398500713,1765757316617,5679.68819907,0.00011727,2]
[398500723,1765757391125,6152.8,0.00015112,2]
[398500727,1765757418639,150.0,0.00015103,2]
[398500728,1765757430740,150.0,0.00022458,120]
[398500734,1765757431697,-150.0,0.00015773,2]
[398500735,1765757431707,-282.0,0.00015773,2]
[398500736,1765757431717,-250.0,0.00015779,2]
[398500737,1765757431726,-195.0,0.00015785,2]
[398500738,1765757431736,-108.21312914,0.00015797,2]
[398500739,1765757431934,-1234.92698124,0.00015797,2]
[398500740,1765757431944,-193.0,0.00015797,2]
[398500741,1765757431954,-195.0,0.00015797,2]
[398500742,1765757431963,-300.0,0.00015797,2]
[398500743,1765757431972,-150.0,0.00015797,2]
[398500744,1765757431981,-150.0,0.00015818,2]
[398500745,1765757431991,-9.92437573,0.0001585,2]
[398500746,1765757432000,-150.0,0.00015854,2]
[398500747,1765757432009,-150.0,0.00015854,2]
[398500751,1765757432476,-150.0,0.00015894,2]
[398500752,1765757432562,-150.0,0.00015925,2]
[398500753,1765757432571,-150.0,0.00015925,2]
[398500754,1765757432580,-150.0,0.00015967,2]
[398500755,1765757432589,-150.0,0.00015967,2]
[398500756,1765757432599,-253.0,0.00015973,2]
[398500757,1765757432608,-168.0,0.00015987,2]
[398500758,1765757432618,-150.0,0.00015995,2]
[398500759,1765757432630,-150.0,0.00016016,2]
[398500760,1765757432640,-150.0,0.00016031,2]
[398500761,1765757432651,-150.0,0.00016043,2]
[398500762,1765757432664,-152.0,0.000161,2]
[398500763,1765757432675,-152.0,0.000161,2]
[398500764,1765757432685,-40.85066449,0.000161,2]
[398500765,1765757432702,-111.14933551,0.000161,2]
[398500766,1765757432713,-152.0,0.000161,2]
[398500767,1765757432722,-152.0,0.000161,2]
[398500768,1765757432733,-145.88460634,0.000161,2]
[398500769,1765757432747,-6.11539366,0.000161,2]
[398500770,1765757432756,-152.0,0.000161,2]
[398500771,1765757432766,-152.0,0.000161,2]
[398500772,1765757432778,-152.0,0.000161,2]
[398500773,1765757432789,-152.0,0.000161,2]
[398500774,1765757432799,-242.15963541,0.000161,2]
[398500775,1765757432812,-152.0,0.000161,2]
[398500776,1765757432822,-152.0,0.000161,2]
[398500777,1765757432832,-152.0,0.000161,2]
[398500778,1765757432842,-1200.0,0.00016119,2]
[398500779,1765757432853,-300.0,0.00016119,2]
[398500780,1765757432864,-6594.33775428,0.0001612,2]
[398500781,1765757432876,-1200.0,0.00016136,2]
[398500782,1765757432887,-150.0,0.00016137,2]
[398500783,1765757432898,-150.0,0.00016137,2]
[398500784,1765757432907,-150.0,0.00016137,2]
[398500785,1765757432918,-150.0,0.00016137,2]
[398500786,1765757432928,-150.0,0.00016137,2]
[398500787,1765757432938,-150.0,0.00016137,2]
[398500788,1765757432948,-150.0,0.00016137,2]
[398500789,1765757432959,-550.0,0.00016148,2]
[398500790,1765757432968,-500.0,0.00016149,2]
[398500791,1765757432978,-300.00000001,0.00016149,2]
[398500792,1765757432988,-578.20924308,0.00016149,2]
[398500793,1765757432999,-9000.0,0.00016149,2]
[398500794,1765757433009,-153.01637236,0.00016149,2]
[398500795,1765757433019,-1111.0,0.00016149,2]
[398500796,1765757433029,-200.0,0.00016149,2]
[398500797,1765757433038,-207.4,0.00016149,2]
[398500798,1765757433048,-215.0738,0.00016149,2]
[398500799,1765757433058,-223.0315306,0.00016149,2]
[398500800,1765757433068,-231.28369723,0.00016149,2]
[398500801,1765757433077,-239.84119403,0.00016149,2]
[398500802,1765757433087,-248.71531821,0.00016149,2]
[398500803,1765757433097,-257.91778498,0.00016149,2]
[398500804,1765757433107,-267.46074303,0.00016149,2]
[398500805,1765757433116,-277.35679052,0.00016149,2]
[398500806,1765757433126,-200.0,0.00016203,2]
[398500807,1765757433136,-151.0,0.00016203,2]
[398500808,1765757433146,-151.0,0.00016203,2]
[398500809,1765757433155,-151.0,0.00016203,2]
[398500810,1765757433165,-151.0,0.00016203,2]
[398500811,1765757433175,-151.0,0.00016203,2]
[398500812,1765757433184,-157.82333405,0.00016203,2]
[398500813,1765757433194,-151.0,0.00016203,2]
[398500814,1765757433204,-151.0,0.00016203,2]
[398500815,1765757433213,-151.0,0.00016203,2]
[398500816,1765757433223,-151.0,0.00016203,2]
[398500817,1765757433233,-151.0,0.00016203,2]
[398500818,1765757433243,-151.0,0.00016203,2]
[398500819,1765757433253,-500.0,0.00016203,2]
[398500820,1765757433263,-151.0,0.00016203,2]
[398500821,1765757433273,-500.0,0.00016203,2]
[398500822,1765757433283,-151.0,0.00016203,2]
[398500823,1765757433293,-500.0,0.00016203,2]
[398500824,1765757433302,-301.63702078,0.00016203,2]
[398500825,1765757433312,-151.0,0.00016203,2]
[398500826,1765757433322,-151.0,0.00016203,2]
[398500827,1765757433332,-151.0,0.00016203,2]
[398500828,1765757433342,-151.0,0.00016203,2]
[398500829,1765757433351,-200.0,0.00016203,2]
[398500830,1765757433361,-500.0,0.00016203,2]
[398500831,1765757433371,-620.0,0.00016203,2]
[398500832,1765757433381,-200.0,0.00016203,2]
[398500833,1765757433396,-9000.0,0.00016204,2]
[398500834,1765757433406,-1111.0,0.00016204,2]
[398500835,1765757433416,-6594.33775425,0.00016207,2]
[398500836,1765757433427,-268.88,0.0001621,2]
[398500837,1765757433437,-205.36649181,0.00016211,2]
[398500838,1765757433447,-500.0,0.00016211,2]
[398500839,1765757433458,-500.0,0.00016211,2]
[398500840,1765757433468,-500.0,0.00016211,2]
[398500841,1765757433478,-500.0,0.00016211,2]
[398500842,1765757433488,-500.0,0.00016211,2]
[398500843,1765757433498,-521.81321067,0.00016211,2]
[398500844,1765757433508,-500.0,0.00016211,2]
[398500845,1765757433518,-500.0,0.00016211,2]
[398500846,1765757433527,-500.0,0.00016211,2]
[398500847,1765757433537,-230.17536749,0.00016211,2]
[398500848,1765757433547,-500.0,0.00016211,2]
[398500849,1765757433557,-626.35762769,0.00016211,2]
[398500850,1765757433567,-500.0,0.00016211,2]
[398500851,1765757433577,-500.0,0.00016211,2]
[398500852,1765757433587,-180.08828091,0.00016211,2]
[398500853,1765757433599,-319.91171909,0.00016211,2]
[398500854,1765757433609,-500.0,0.00016211,2]
[398500855,1765757433619,-500.0,0.00016211,2]
[398500856,1765757433630,-500.0,0.00016211,2]
[398500857,1765757433639,-500.0,0.00016211,2]
[398500858,1765757433649,-500.0,0.00016211,2]
[398500859,1765757433658,-500.0,0.00016211,2]
[398500860,1765757433668,-500.0,0.00016211,2]
[398500861,1765757433677,-500.0,0.00016211,2]
[398500862,1765757433686,-500.0,0.00016211,2]
[398500863,1765757433696,-500.0,0.00016211,2]
[398500864,1765757433705,-500.0,0.00016211,2]
[398500865,1765757433715,-500.0,0.00016211,2]
[398500866,1765757433725,-500.0,0.00016211,2]
[398500867,1765757433734,-500.0,0.00016211,2]
[398500868,1765757433744,-500.0,0.00016211,2]
[398500869,1765757433753,-500.0,0.00016211,2]
[398500870,1765757433763,-500.0,0.00016211,2]
[398500871,1765757433772,-277.57742073,0.00016211,2]
[398500872,1765757433783,-222.42257927,0.00016211,2]
[398500873,1765757433793,-500.0,0.00016211,2]
[398500874,1765757433802,-250.0,0.00016211,2]
[398500875,1765757433817,-1001.79192302,0.00016212,2]
[398500876,1765757433827,-500.0,0.00016212,2]
[398500877,1765757433837,-202.656015,0.00016212,2]
[398500878,1765757433847,-186.76714442,0.00016212,2]
[398500879,1765757433856,-184.26011281,0.00016212,2]
[398500880,1765757433866,-737.43,0.00016212,2]
[398500881,1765757433876,-22979.8224089,0.00016213,2]
[398500882,1765757433888,-32445.08777325,0.00016213,2]
[398500883,1765757433900,-2973.39073889,0.00016213,2]
[398500887,1765757437824,-152.0,0.000161,2]
[398500888,1765757437835,-152.0,0.000161,2]
[398500889,1765757437848,-3773.57874292,0.00016213,2]
[398500890,1765757437859,-869.88367772,0.00016213,2]
[398500891,1765757437875,-9519.46653766,0.00016213,2]
[398500892,1765757437890,-1859.80493092,0.00016213,2]
[398500893,1765757437901,-1288.49102909,0.00016213,2]
[398500899,1765757439934,-75405.82990793,0.00016213,2]
[398500900,1765757439946,-44780.19018885,0.00016213,2]
[398500901,1765757439956,-201.18,0.0001622,2]
[398500902,1765757439966,-150.0,0.00016231,2]
[398500903,1765757439976,-214.55123332,0.00016237,2]
[398500904,1765757439985,-150.0,0.00016243,2]
[398500905,1765757439994,-150.0,0.00016258,2]
[398500906,1765757440004,-9000.0,0.00016259,2]
[398500907,1765757440014,-1111.0,0.00016259,2]
[398500908,1765757440023,-150.0,0.00016279,2]
[398500909,1765757440033,-6594.33775425,0.00016293,2]
[398500910,1765757440043,-150.0,0.00016307,2]
[398500911,1765757440053,-150.0,0.00016307,2]
[398500912,1765757440062,-9000.0,0.00016314,2]
[398500913,1765757440074,-1111.0,0.00016314,2]
[398500914,1765757440084,-965.0,0.00016333,2]
[398500915,1765757440094,-176.60937303,0.00016337,2]
[398500916,1765757440103,-250.0,0.00016347,2]
[398500917,1765757440113,-150.0,0.00016349,2]
[398500918,1765757440122,-150.0,0.00016349,2]
[398500919,1765757440131,-9000.0,0.00016369,2]
[398500920,1765757440140,-150.0,0.0001638,2]
[398500921,1765757440150,-6594.33775425,0.0001638,2]
[398500922,1765757440159,-4903.89,0.00016383,2]
[398500923,1765757440168,-176.60937294,0.00016393,2]
[398500924,1765757440177,-307.92,0.000164,2]
[398500925,1765757440186,-480.71,0.000164,2]
[398500926,1765757440195,-965.0,0.00016413,2]
[398500928,1765757440204,-150.0,0.0001642,2]
[398500930,1765757440214,-150.0,0.0001642,2]
[398500932,1765757440223,-151.0,0.00016422,2]
[398500934,1765757440232,-564.12180046,0.00016423,2]
[398500936,1765757440241,-500.0,0.00016424,2]
[398500938,1765757440250,-500.0,0.00016424,2]
[398500940,1765757440259,-500.0,0.00016424,2]
[398500942,1765757440268,-500.0,0.00016424,2]
[398500944,1765757440276,-500.0,0.00016424,2]
[398500946,1765757440285,-500.0,0.00016424,2]
[398500948,1765757440294,-500.0,0.00016424,2]
[398500950,1765757440303,-500.0,0.00016424,2]
[398500952,1765757440312,-500.0,0.00016424,2]
[398500954,1765757440321,-500.0,0.00016424,2]
[398500956,1765757440330,-500.0,0.00016424,2]
[398500958,1765757440339,-239.10838329,0.00016424,2]
[398500960,1765757440348,-9000.0,0.00016424,2]
[398500962,1765757440357,-500.0,0.00016437,2]
[398500963,1765757440366,-500.0,0.00016437,2]
[398500966,1765757440375,-500.0,0.00016437,2]
[398500968,1765757440388,-388.37586409,0.00016437,2]
[398500969,1765757440397,-500.0,0.00016438,2]
[398500970,1765757440406,-500.0,0.00016438,2]
[398500971,1765757440415,-500.0,0.00016438,2]
[398500972,1765757440424,-333.63851792,0.00016438,2]
[398500973,1765757440433,-500.0,0.00016438,2]
[398500974,1765757440442,-500.0,0.00016438,2]
[398500975,1765757440452,-500.0,0.00016438,2]
[398500976,1765757440461,-500.0,0.00016438,2]
[398500977,1765757440471,-500.0,0.00016438,2]
[398500978,1765757440481,-499.99999999,0.00016438,2]
[398500979,1765757440490,-600.0,0.00016438,2]
[398500980,1765757440500,-176.60937294,0.0001645,2]
[398500981,1765757440508,-150.0,0.00016455,2]
[398500982,1765757440518,-6594.33775425,0.00016467,2]
[398500983,1765757440527,-150.0,0.00016477,2]
[398500984,1765757440536,-150.0,0.00016478,2]
[398500985,1765757440545,-9000.0,0.00016479,2]
[398500986,1765757440554,-737.43,0.00016486,2]
[398500987,1765757440563,-150.0,0.00016501,2]
[398500988,1765757440573,-176.60937294,0.00016506,2]
[398500989,1765757440582,-9000.0,0.00016534,2]
[398500990,1765757440591,-6594.33775425,0.00016553,2]
[398500991,1765757440601,-150.0,0.00016562,2]
[398500992,1765757440610,-150.0,0.00016562,2]
[398500993,1765757440619,-150.0,0.00016562,2]
[398500994,1765757440629,-176.60937294,0.00016562,2]
[398500995,1765757440639,-157.94956517,0.00016598,2]
[398500996,1765757440648,-150.0,0.00016609,2]
[398500997,1765757440658,-176.60937294,0.00016619,2]
[398500998,1765757440667,-150.0,0.00016622,2]
[398500999,1765757440676,-517.21379875,0.00016626,2]
[398501000,1765757440685,-500.0,0.00016626,2]
[398501001,1765757440694,-515.87772685,0.00016626,2]
[398501002,1765757440703,-500.0,0.00016626,2]
[398501003,1765757440712,-443.20746813,0.00016626,2]
[398501004,1765757440721,-500.0,0.00016626,2]
[398501005,1765757440731,-500.0,0.00016626,2]
[398501006,1765757440739,-500.0,0.00016626,2]
[398501007,1765757440748,-500.0,0.00016626,2]
[398501008,1765757440757,-500.0,0.00016626,2]
[398501009,1765757440767,-500.0,0.00016626,2]
[398501010,1765757440776,-500.0,0.00016626,2]
[398501011,1765757440785,-6594.33775425,0.0001664,2]
[398501012,1765757440794,-6539.07020564,0.00016645,2]
[398501013,1765757440803,-150.0,0.00016647,2]
[398501014,1765757440812,-150.0,0.00016647,2]
[398501018,1765757441326,-2559.25894953,0.0001666,2]
[398501019,1765757441361,-150.0,0.00016668,2]
[398501020,1765757441371,-176.60937294,0.00016675,2]
[398501021,1765757441381,-1127.0,0.00016676,2]
[398501022,1765757441395,-500.0,0.00016699,2]
[398501023,1765757441404,-150.0,0.00016699,2]
[398501024,1765757441414,-150.0,0.00016699,2]
[398501025,1765757441423,-150.0,0.00016699,2]
[398501026,1765757441435,-150.0,0.00016699,2]
[398501027,1765757441446,-150.0,0.00016699,2]
[398501028,1765757441456,-278.38503529,0.00016699,2]
[398501029,1765757441470,-150.24377711,0.00016699,2]
[398501030,1765757441480,-150.0,0.00016699,2]
[398501031,1765757441490,-500.0,0.00016699,2]
[398501032,1765757441500,-150.0,0.00016699,2]
[398501033,1765757441509,-150.0,0.00016699,2]
[398501034,1765757441519,-500.0,0.00016699,2]
[398501035,1765757441528,-1299.0,0.00016699,2]
[398501036,1765757441538,-150.0,0.00016699,2]
[398501037,1765757441547,-500.0,0.00016699,2]
[398501038,1765757441556,-150.0,0.00016699,2]
[398501039,1765757441566,-150.0,0.00016699,2]
[398501040,1765757441575,-150.0,0.00016699,2]
[398501041,1765757441584,-150.0,0.00016699,2]
[398501042,1765757441594,-500.0,0.00016699,2]
[398501043,1765757441604,-150.0,0.00016699,2]
[398501044,1765757441618,-500.0,0.00016699,2]
[398501045,1765757441628,-500.0,0.00016699,2]
[398501046,1765757441637,-150.0,0.00016699,2]
[398501047,1765757441647,-500.0,0.00016699,2]
[398501048,1765757441656,-154.31095398,0.00016699,2]
[398501049,1765757441666,-150.0,0.00016699,2]
[398501050,1765757441676,-150.0,0.00016699,2]
[398501051,1765757441687,-500.0,0.00016699,2]
[398501052,1765757441696,-150.0,0.00016699,2]
[398501053,1765757441706,-500.0,0.00016699,2]
[398501054,1765757441716,-150.0,0.00016703,2]
[398501055,1765757441726,-168.27,0.00016712,2]
[398501056,1765757441736,-6594.33775425,0.00016727,2]
[398501057,1765757441745,-209.17,0.00016731,2]
[398501058,1765757441755,-176.60937294,0.00016731,2]
[398501059,1765757441764,-150.0,0.00016744,2]
[398501060,1765757441774,-627.04271784,0.00016751,2]
[398501061,1765757441785,-200.0,0.00016751,2]
[398501062,1765757441794,-737.43,0.0001676,2]
[398501063,1765757441803,-965.0,0.00016766,2]
[398501064,1765757441813,-2720.36349615,0.00016772,2]
[398501065,1765757441823,-150.0,0.00016774,2]
[398501066,1765757441832,-150.0,0.00016774,2]
[398501067,1765757441842,-176.60937294,0.00016787,2]
[398501068,1765757441853,-150.0,0.00016798,2]
[398501069,1765757441862,-6594.33775425,0.00016813,2]
[398501070,1765757441872,-150.0,0.00016816,2]
[398501071,1765757441882,-1361.69510116,0.00016825,2]
[398501072,1765757441892,-4750.0,0.0001683,2]
[398501073,1765757441902,-1024.437,0.0001683,2]
[398501074,1765757441912,-500.0,0.00016836,2]
[398501075,1765757441922,-150.0,0.00016836,2]
[398501076,1765757441932,-150.0,0.00016836,2]
[398501077,1765757441941,-150.0,0.00016836,2]
[398501078,1765757441951,-500.0,0.00016836,2]
[398501079,1765757441960,-150.0,0.00016836,2]
[398501080,1765757441970,-500.0,0.00016836,2]
[398501081,1765757441980,-1299.0,0.00016836,2]
[398501082,1765757441989,-500.0,0.00016836,2]
[398501083,1765757441999,-150.0,0.00016836,2]
[398501084,1765757442008,-150.0,0.00016836,2]
[398501085,1765757442018,-150.0,0.00016836,2]
[398501086,1765757442027,-552.53330699,0.00016836,2]
[398501087,1765757442036,-500.0,0.00016836,2]
[398501088,1765757442046,-568.92871149,0.00016836,2]
[398501089,1765757442062,-500.0,0.00016836,2]
[398501090,1765757442073,-150.0,0.00016836,2]
[398501091,1765757442082,-150.0,0.00016836,2]
[398501092,1765757442092,-500.0,0.00016836,2]
[398501093,1765757442101,-500.0,0.00016836,2]
[398501094,1765757442111,-176.60937294,0.00016844,2]
[398501095,1765757442120,-150.0,0.00016845,2]
[398501096,1765757442129,-2203.17874937,0.00016853,2]
[398501097,1765757442139,-200.0,0.00016864,2]
[398501098,1765757442148,-150.0,0.00016865,2]
[398501099,1765757442157,-611.0,0.0001688,2]
[398501100,1765757442167,-1324.0,0.0001688,2]
[398501101,1765757442176,-3451.0,0.0001688,2]
[398501102,1765757442186,-589.0,0.0001688,2]
[398501103,1765757442199,-1261.0,0.0001688,2]
[398501104,1765757442208,-911.0,0.0001688,2]
[398501105,1765757442217,-1196.0,0.0001688,2]
[398501106,1765757442227,-4797.0,0.0001688,2]
[398501107,1765757442236,-2426.0,0.0001688,2]
[398501108,1765757442247,-563.0,0.0001688,2]
[398501109,1765757442257,-150.0,0.0001688,2]
[398501110,1765757442266,-965.0,0.00016883,2]
[398501111,1765757442276,-10000.0,0.000169,2]
[398501112,1765757442285,-3328.34546015,0.000169,2]
[398501113,1765757442295,-176.60937294,0.000169,2]
[398501114,1765757442305,-6594.33775425,0.000169,2]
[398501115,1765757442316,-4033.67288862,0.000169,2]
[398501116,1765757442325,-150.85899699,0.00016908,2]
[398501117,1765757442335,-6968.65506539,0.00016914,2]
[398501118,1765757442345,-9999.99,0.00016922,2]
[398501119,1765757442354,-9999.99,0.00016922,2]
[398501120,1765757442364,-331.11,0.00016922,2]
[398501121,1765757442374,-1805.73,0.00016922,2]
[398501122,1765757442384,-999.99,0.00016922,2]
[398501123,1765757442396,-8928.5,0.00016922,2]
[398501124,1765757442406,-150.99,0.00016922,2]
[398501125,1765757442416,-3372.3,0.00016922,2]
[398501126,1765757442426,-8346.9,0.00016922,2]
[398501127,1765757442436,-1000.0,0.0001697,2]
[398501128,1765757442447,-1000.0,0.0001697,2]
[398501129,1765757442458,-1000.0,0.0001697,2]
[398501130,1765757442467,-1000.0,0.0001697,2]
[398501131,1765757442476,-500.0,0.00016973,2]
[398501132,1765757442486,-500.0,0.00016973,2]
[398501133,1765757442495,-163.59244045,0.00016973,2]
[398501134,1765757442505,-152.21927846,0.00016973,2]
[398501136,1765757442515,-228.75967025,0.00016973,2]
[398501137,1765757442524,-500.0,0.00016973,2]
[398501138,1765757442533,-500.0,0.00016973,2]
[398501139,1765757442543,-500.0,0.00016973,2]
[398501140,1765757442554,-500.0,0.00016973,2]
[398501141,1765757442564,-500.0,0.00016973,2]
[398501142,1765757442574,-502.26225746,0.00016973,2]
[398501144,1765757442583,-500.0,0.00016973,2]
[398501146,1765757442592,-500.0,0.00016973,2]
[398501148,1765757442602,-517.81601254,0.00016973,2]
[398501151,1765757442611,-500.0,0.00016973,2]
[398501152,1765757442620,-500.0,0.00016973,2]
[398501155,1765757442630,-500.0,0.00016973,2]
[398501157,1765757442639,-500.0,0.00016973,2]
[398501158,1765757442648,-500.25167315,0.00016973,2]
[398501161,1765757442658,-500.0,0.00016973,2]
[398501163,1765757442668,-500.0,0.00016973,2]
[398501164,1765757442677,-500.0,0.00016973,2]
[398501167,1765757442687,-150.0,0.00016973,2]
[398501168,1765757442696,-200.0,0.00016973,2]
[398501170,1765757442706,-200.0,0.00016973,2]
[398501172,1765757442716,-500.0,0.00016973,2]
[398501173,1765757442726,-150.0,0.00016973,2]
[398501174,1765757442736,-500.0,0.00016973,2]
[398501175,1765757442745,-1299.0,0.00016973,2]
[398501176,1765757442754,-500.0,0.00016973,2]
[398501177,1765757442763,-150.0,0.00016973,2]
[398501178,1765757442772,-150.0,0.00016973,2]
[398501179,1765757442782,-150.0,0.00016973,2]
[398501180,1765757442791,-500.0,0.00016973,2]
[398501181,1765757442800,-500.0,0.00016973,2]
[398501182,1765757442809,-150.0,0.00016973,2]
[398501183,1765757442819,-179.0889974,0.00016973,2]
[398501184,1765757442828,-500.0,0.00016973,2]
[398501185,1765757442837,-350.0,0.00016973,2]
[398501186,1765757442847,-500.0,0.00016973,2]
[398501187,1765757442856,-150.0,0.00016973,2]
[398501188,1765757442866,-500.0,0.00016983,2]
[398501189,1765757442875,-164.87838723,0.00016983,2]
[398501190,1765757442884,-500.0,0.00016986,2]
[398501191,1765757442895,-600.0,0.00016986,2]
[398501192,1765757442904,-295.31439554,0.00016986,2]
[398501193,1765757442913,-279.21352969,0.00016986,2]
[398501194,1765757442923,-150.0,0.00016986,2]
[398501195,1765757442932,-176.97375711,0.00016986,2]
[398501196,1765757442941,-264.60302406,0.00016986,2]
[398501197,1765757442951,-150.0,0.00016986,2]
[398501198,1765757442960,-150.0,0.00016986,2]
[398501200,1765757442969,-205.71936407,0.00016986,2]
[398501202,1765757442979,-150.0,0.00016986,2]
[398501204,1765757442988,-151.0,0.00016997,2]
[398501206,1765757442998,-1345.08424744,0.00016999,5]
[398501208,1765757443008,-1345.08424745,0.00016999,5]
[398501210,1765757443018,-540.21907777,0.00016999,2]
[398501212,1765757443028,-500.0,0.00016999,2]
[398501214,1765757443037,-500.0,0.00016999,2]
[398501216,1765757443046,-500.0,0.00016999,2]
[398501218,1765757443056,-500.0,0.00016999,2]
[398501220,1765757443065,-500.0,0.00016999,2]
[398501222,1765757443075,-500.0,0.00016999,2]
[398501224,1765757443084,-387.34503477,0.00016999,2]
[398501226,1765757443093,-300.0,0.00016999,2]
[398501228,1765757443102,-217.40476,0.00017,2]
[398501230,1765757443112,-74007.90470104,0.00017,2]
[398501233,1765757443127,-355472.28146575,0.00017,2]
[398501235,1765757443139,-5713345.39245191,0.00017,2]
[398501239,1765757443158,-1011.31423158,0.00017,2]
[398501264,1765757443407,-152.0,0.000161,2]
[398501266,1765757443416,-564.99396338,0.0001688,2]
[398501300,1765757445922,-152.0,0.000161,2]
[398501301,1765757445932,-152.0,0.000161,2]
[398501302,1765757445941,-152.0,0.000161,2]
[398501303,1765757445950,-5114.45453968,0.0001688,2]
[398501304,1765757445995,-841.55149694,0.0001688,2]